bitfinex-derivatives/quotes_BTCF0:USTF0_20260131
["timestamp","ask_amount","ask_price","bid_price","bid_amount"]
[1769891023725,0.012857,77888.0,77866.0,0.012861]
[1769891024123,0.012856,77893.0,77861.0,0.2736512]
[1769891024328,0.012856,77893.0,77869.0,0.01286]
[1769891024525,0.09252,77900.0,77871.0,0.2736512]
[1769891024526,0.14126361,77897.0,77871.0,0.2736512]
[1769891024728,0.012856,77897.0,77871.0,0.2736512]
[1769891024929,0.012856,77894.0,77872.0,0.01286]
[1769891025128,0.012856,77894.0,77871.0,0.2736512]
[1769891025129,0.29675847,77907.0,77871.0,0.2736512]
[1769891025324,0.012856,77895.0,77871.0,0.2736512]
[1769891025538,0.012853,77913.0,77859.0,0.09252]
[1769891025539,0.012857,77889.0,77864.0,0.012861]
[1769891025833,0.09252,77900.0,77871.0,0.2865112]
[1769891025834,0.012856,77893.0,77871.0,0.2865112]
[1769891026028,0.012856,77893.0,77871.0,0.01286]
[1769891026236,0.12325372,77898.0,77871.0,0.01286]
[1769891026436,0.012856,77897.0,77867.0,0.2736512]
[1769891026622,0.012856,77894.0,77873.0,0.012859]
[1769891027632,0.012856,77895.0,77875.0,0.012859]
[1769891027834,0.012856,77892.0,77871.0,0.01286]
[1769891028029,0.1283969,77899.0,77891.0,0.012857]
[1769891028234,0.1283969,77899.0,77885.0,0.2736512]
[1769891028235,0.09252,77914.0,77889.0,0.2736512]
[1769891028634,0.012851,77923.0,77899.0,0.012855]
[1769891028838,0.012852,77920.0,77899.0,0.012855]
[1769891029038,0.09252,77924.0,77889.0,0.2736512]
[1769891029232,0.012854,77908.0,77889.0,0.012857]
[1769891029530,0.012854,77907.0,77888.0,0.012857]
[1769891029736,0.012855,77902.0,77885.0,0.09252]
[1769891029946,0.012856,77896.0,77876.0,0.012859]
[1769891030241,0.012856,77893.0,77875.0,0.012859]
[1769891030442,0.29675847,77906.0,77877.0,0.012859]
[1769891030634,0.012856,77894.0,77874.0,0.012859]
[1769891030831,0.012856,77898.0,77876.0,0.012859]
[1769891031038,0.29675847,77906.0,77873.0,0.01286]
[1769891031237,0.012855,77900.0,77870.0,0.2736512]
[1769891031432,0.12839113,77904.0,77870.0,0.2736512]
[1769891031641,0.012856,77896.0,77875.0,0.012859]
[1769891031936,0.12839113,77904.0,77870.0,0.2736512]
[1769891032333,0.064256,77927.0,77861.0,0.09252]
[1769891032334,0.012854,77908.0,77882.0,0.2736512]
[1769891032534,0.29675847,77908.0,77875.0,0.09252]
[1769891032839,0.12839113,77904.0,77889.0,0.012857]
[1769891033039,0.09252,77908.0,77886.0,0.012857]
[1769891033341,0.12837547,77907.0,77886.0,0.012857]
[1769891033534,0.14122947,77907.0,77888.0,0.012857]
[1769891033737,0.012854,77905.0,77885.0,0.012858]
[1769891033941,0.012854,77905.0,77887.0,0.012857]
[1769891034240,0.012855,77903.0,77885.0,0.012857]
[1769891034942,0.012855,77903.0,77884.0,0.012858]
[1769891035841,0.012855,77903.0,77886.0,0.012857]
[1769891036034,0.012855,77903.0,77876.0,0.2736512]
[1769891036035,0.012855,77901.0,77882.0,0.012858]
[1769891036235,0.012855,77901.0,77876.0,0.2736512]
[1769891036236,0.012855,77901.0,77884.0,0.012858]
[1769891036435,0.012854,77905.0,77886.0,0.012857]
[1769891036643,0.012855,77901.0,77883.0,0.012858]
[1769891036939,0.012855,77901.0,77876.0,0.2736512]
[1769891036940,0.012854,77904.0,77885.0,0.012857]
[1769891037140,0.012854,77904.0,77887.0,0.012857]
[1769891037843,0.38931847,77908.0,77875.0,0.09252]
[1769891037844,0.012855,77901.0,77881.0,0.012858]
[1769891038039,0.012855,77899.0,77881.0,0.012858]
[1769891038441,0.012858,77880.0,77861.0,0.09256]
[1769891038642,0.012858,77885.0,77861.0,0.09256]
[1769891038835,0.01286,77872.0,77861.0,0.09256]
[1769891039436,0.105418,77885.0,77850.0,0.05]
[1769891039437,0.012861,77864.0,77850.0,0.05]
[1769891039842,0.30961747,77878.0,77850.0,0.05]
[1769891040042,0.41975664,77877.0,77850.0,0.05]
[1769891040232,0.012858,77881.0,77850.0,0.05]
[1769891040233,0.012862,77860.0,77850.0,0.05]
[1769891040440,0.012862,77856.0,77845.0,0.09256]
[1769891040635,0.012863,77854.0,77845.0,0.09256]
[1769891040835,0.012863,77852.0,77832.0,0.012866]
[1769891041043,0.12842823,77867.0,77838.0,0.2736512]
[1769891041246,0.13609692,77866.0,77838.0,0.2736512]
[1769891041541,0.13609692,77866.0,77825.0,0.09256]
[1769891041542,0.012865,77842.0,77825.0,0.09256]
[1769891041744,0.012865,77840.0,77825.0,0.09256]
[1769891042045,0.0001149,77841.0,77825.0,0.09256]
[1769891042246,0.012863,77855.0,77826.0,0.2736512]
[1769891042544,0.012862,77861.0,77844.0,0.012864]
[1769891042743,0.12848103,77866.0,77836.0,0.2736512]
[1769891042744,0.012861,77865.0,77836.0,0.2736512]
[1769891042939,0.09256,77869.0,77850.0,0.012863]
[1769891043145,0.09256,77869.0,77854.0,0.012863]
[1769891043340,0.37024,77880.0,77841.0,0.09256]
[1769891043341,0.012858,77883.0,77848.0,0.2736512]
[1769891043645,0.012858,77881.0,77863.0,0.012861]
[1769891044036,0.012859,77877.0,77845.0,0.2865152]
[1769891044246,0.09256,77885.0,77845.0,0.2865152]
[1769891044447,0.24889575,77884.0,77845.0,0.2865152]
[1769891044741,0.012858,77880.0,77860.0,0.012862]
[1769891044941,0.012858,77880.0,77854.0,0.2736512]
[1769891045149,0.29675847,77874.0,77841.0,0.09256]
[1769891045644,0.29675847,77862.0,77841.0,0.09256]
[1769891045844,0.012863,77854.0,77827.0,0.09256]
[1769891046147,0.29675847,77856.0,77827.0,0.09256]
[1769891046347,0.29675847,77856.0,77813.0,0.2736512]
[1769891046348,0.29675847,77856.0,77820.0,0.012868]
[1769891046742,0.29675847,77842.0,77814.0,0.12846782]
[1769891046937,0.012866,77832.0,77809.0,0.10543]
[1769891047437,0.012866,77832.0,77809.0,0.09256]
[1769891047843,0.012867,77829.0,77809.0,0.09256]
[1769891048350,0.012868,77823.0,77809.0,0.09256]
[1769891048550,0.27481494,77824.0,77807.0,0.00015484]
[1769891049050,0.09256,77826.0,77807.0,0.28243439]
[1769891049253,0.09256,77826.0,77815.0,0.012869]
[1769891049549,0.09256,77826.0,77807.0,0.00015484]
[1769891050444,0.012867,77830.0,77807.0,0.00015484]
[1769891050841,0.012867,77827.0,77807.0,0.00015484]
[1769891051038,0.0926,77832.0,77807.0,0.00015484]
[1769891051244,0.012868,77825.0,77807.0,0.00015484]
[1769891051439,0.012867,77826.0,77807.0,0.00015484]
[1769891051752,0.12850249,77830.0,77807.0,0.00015484]
[1769891052043,0.012868,77823.0,77807.0,0.00015484]
[1769891052250,0.27481494,77831.0,77807.0,0.00015484]
[1769891052543,0.27481494,77830.0,77807.0,0.00015484]
[1769891052751,0.012868,77820.0,77807.0,0.00015484]
[1769891052951,0.012869,77817.0,77807.0,0.00015484]
[1769891053550,0.01287,77812.0,77795.0,0.0926]
[1769891053750,0.012869,77816.0,77795.0,0.0926]
[1769891053945,0.012869,77813.0,77795.0,0.0926]
[1769891054342,0.01287,77811.0,77795.0,0.0926]
[1769891054744,0.01287,77807.0,77795.0,0.0926]
[1769891054945,0.012871,77805.0,77795.0,0.0926]
[1769891055145,0.012871,77803.0,77785.0,0.012874]
[1769891055453,0.40334964,77811.0,77782.0,0.012875]
[1769891055752,0.012873,77795.0,77781.0,0.0926]
[1769891055950,0.012873,77793.0,77781.0,0.0926]
[1769891056644,8.4e-07,77794.0,77781.0,0.0926]
[1769891056844,8.4e-07,77794.0,77775.0,0.28227955]
[1769891057044,8.4e-07,77794.0,77785.0,0.012874]
[1769891057543,8.4e-07,77794.0,77791.0,0.012873]
[1769891057843,8.4e-07,77794.0,77788.0,0.012874]
[1769891058050,8.4e-07,77794.0,77785.0,0.012874]
[1769891058241,8.4e-07,77794.0,77777.0,0.0926]
[1769891058242,8.4e-07,77794.0,77787.0,0.012874]
[1769891058450,8.4e-07,77794.0,77777.0,0.0926]
[1769891058743,0.01287384,77794.0,77777.0,0.0926]
[1769891059250,8.4e-07,77794.0,77777.0,0.0926]
[1769891059545,8.4e-07,77794.0,77787.0,0.012874]
[1769891059746,8.4e-07,77794.0,77778.0,0.28227955]
[1769891059747,8.4e-07,77794.0,77786.0,0.012874]
[1769891059939,8.4e-07,77794.0,77778.0,0.28227955]
[1769891060139,8.4e-07,77794.0,77783.0,0.012874]
[1769891060744,8.4e-07,77794.0,77777.0,0.0926]
[1769891060944,0.012874,77788.0,77777.0,0.0926]
[1769891061149,0.012874,77786.0,77777.0,0.0926]
[1769891061751,0.012875,77780.0,77763.0,0.09276461]
[1769891062144,0.12856362,77793.0,77763.0,0.09276461]
[1769891062343,0.01287384,77794.0,77774.0,0.012876]
[1769891062640,8.4e-07,77794.0,77784.0,0.012874]
[1769891062844,0.012874,77789.0,77763.0,0.09276461]
[1769891063255,0.012874,77784.0,77763.0,0.09276461]
[1769891063454,0.27481578,77794.0,77763.0,0.09276461]
[1769891063455,8.4e-07,77794.0,77764.0,0.28227955]
[1769891063649,0.01287384,77794.0,77764.0,0.28227955]
[1769891064154,0.012873,77792.0,77764.0,0.28227955]
[1769891064351,0.012873,77792.0,77773.0,0.012876]
[1769891064651,0.00100084,77794.0,77775.0,0.012826]
[1769891064954,0.00100084,77794.0,77774.0,0.28227955]
[1769891065351,8.4e-07,77794.0,77778.0,0.012875]
[1769891065750,8.4e-07,77794.0,77780.0,0.012875]
[1769891066350,8.4e-07,77794.0,77777.0,0.012875]
[1769891066652,8.4e-07,77794.0,77774.0,0.28227955]
[1769891067350,8.4e-07,77794.0,77781.0,0.012875]
[1769891067750,8.4e-07,77794.0,77783.0,0.012874]
[1769891067954,8.4e-07,77794.0,77793.0,0.012873]
[1769891068552,0.01287,77811.0,77793.0,0.012873]
[1769891068944,0.12854544,77821.0,77793.0,0.29515255]
[1769891069146,0.012868,77824.0,77796.0,0.28227955]
[1769891069347,0.012868,77821.0,77801.0,0.012871]
[1769891069552,0.14139114,77821.0,77801.0,0.012871]
[1769891069749,0.012869,77819.0,77801.0,0.012871]
[1769891069952,0.012869,77819.0,77792.0,0.09264]
[1769891069953,0.01287,77809.0,77792.0,0.09264]
[1769891070149,0.12852314,77820.0,77802.0,0.012871]
[1769891070454,0.012869,77819.0,77793.0,0.28227955]
[1769891070758,0.012869,77815.0,77794.0,0.012872]
[1769891070948,0.012869,77815.0,77796.0,0.012872]
[1769891071147,0.012869,77818.0,77799.0,0.012872]
[1769891071350,0.27481494,77819.0,77796.0,0.012872]
[1769891071552,0.12852561,77818.0,77796.0,0.012872]
[1769891071857,0.01287,77813.0,77796.0,0.012872]
[1769891072160,0.27481494,77817.0,77792.0,0.09264]
[1769891072359,0.012871,77806.0,77789.0,0.012873]
[1769891072954,0.012871,77806.0,77786.0,0.012874]
[1769891073157,0.012871,77804.0,77786.0,0.012874]
[1769891073856,0.36745494,77808.0,77783.0,0.012874]
[1769891074156,0.25475619,77807.0,77783.0,0.012874]
[1769891074360,0.012872,77800.0,77783.0,0.012874]
[1769891075256,0.012872,77798.0,77782.0,0.012875]
[1769891075862,0.09264,77808.0,77780.0,0.28227955]
[1769891076162,0.012871,77804.0,77789.0,0.012873]
[1769891076350,0.12641126,77803.0,77786.0,0.012874]
[1769891076554,0.012871,77802.0,77783.0,0.012874]
[1769891077063,0.001,77800.0,77786.0,0.012874]
[1769891077558,0.012872,77799.0,77783.0,0.012874]
[1769891077759,0.012872,77797.0,77780.0,0.012875]
[1769891078163,0.012871,77803.0,77787.0,0.012874]
[1769891078364,0.12734129,77802.0,77784.0,0.012874]
[1769891078552,0.14021329,77801.0,77784.0,0.012874]
[1769891078754,0.012872,77801.0,77784.0,0.012874]
[1769891078958,0.012872,77801.0,77785.0,0.012874]
[1769891079164,0.012872,77799.0,77782.0,0.012875]
[1769891079361,0.2758692,77805.0,77774.0,0.28812561]
[1769891079565,0.09264,77808.0,77772.0,0.012876]
[1769891079566,0.012873,77791.0,77772.0,0.012876]
[1769891079864,0.012874,77789.0,77772.0,0.012876]
[1769891080065,0.2737432,77799.0,77772.0,0.012876]
[1769891080261,0.012873,77789.0,77772.0,0.012876]
[1769891080465,0.012873,77789.0,77769.0,0.012877]
[1769891080766,0.012874,77786.0,77766.0,0.012877]
[1769891080965,0.012874,77786.0,77763.0,0.09276461]
[1769891080966,0.012874,77786.0,77768.0,0.012877]
[1769891081361,0.12746996,77785.0,77768.0,0.012877]
[1769891081555,0.09268,77806.0,77764.0,0.28812561]
[1769891081762,0.012872,77800.0,77764.0,0.012878]
[1769891081963,0.12857271,77791.0,77763.0,0.27469636]
[1769891082156,0.12747084,77790.0,77780.0,0.012875]
[1769891082362,0.09268,77811.0,77780.0,0.27457175]
[1769891082656,0.14186533,77810.0,77790.0,0.012873]
[1769891082861,0.27880328,77807.0,77777.0,0.09268]
[1769891083060,0.27880328,77805.0,77777.0,0.09268]
[1769891083261,0.09268,77811.0,77762.0,0.012878]
[1769891083262,0.012874,77788.0,77767.0,0.012877]
[1769891083561,0.012874,77786.0,77767.0,0.012877]
[1769891083763,0.012874,77784.0,77763.0,0.01300261]
[1769891083964,0.27880328,77794.0,77763.0,0.01300261]
[1769891083965,0.012875,77782.0,77763.0,0.01300261]
[1769891084160,0.29167828,77780.0,77763.0,0.00012461]
[1769891084365,0.12907657,77779.0,77763.0,0.00012461]
[1769891084563,0.2522,77805.0,77765.0,0.012877]
[1769891084564,0.12907657,77778.0,77765.0,0.012877]
[1769891084761,0.09268,77791.0,77767.0,0.27457175]
[1769891084966,0.12905068,77790.0,77774.0,0.012876]
[1769891085164,0.12905068,77789.0,77773.0,0.27457175]
[1769891085366,0.40785396,77788.0,77763.0,0.00012461]
[1769891085669,0.27880328,77780.0,77763.0,0.00012461]
[1769891085869,0.012876,77775.0,77763.0,0.00012461]
[1769891086764,0.351873,77790.0,77763.0,0.00012461]
[1769891086765,0.27880328,77789.0,77763.0,0.00012461]
[1769891086966,0.012874,77787.0,77766.0,0.012877]
[1769891087170,0.12903842,77786.0,77766.0,0.012877]
[1769891087366,0.12903842,77785.0,77766.0,0.012877]
[1769891087563,0.001,77775.0,77769.0,0.012877]
[1769891087770,0.001,77775.0,77764.0,0.27457175]
[1769891087771,0.012873,77794.0,77774.0,0.012876]
[1769891088070,0.012873,77790.0,77770.0,0.012876]
[1769891088369,0.22167989,77793.0,77772.0,0.012876]
[1769891088370,0.12899989,77789.0,77772.0,0.012876]
[1769891088566,0.12899989,77788.0,77772.0,0.012876]
[1769891088762,0.012875,77779.0,77763.0,0.00012461]
[1769891088963,0.27880328,77792.0,77763.0,0.00012461]
[1769891089163,0.012874,77787.0,77768.0,0.012877]
[1769891089363,0.12900536,77786.0,77763.0,0.27469636]
[1769891089571,0.12897025,77785.0,77765.0,0.27457175]
[1769891089872,0.351874,77788.0,77771.0,0.012876]
[1769891090167,0.12897132,77787.0,77771.0,0.012876]
[1769891090370,0.12897132,77786.0,77771.0,0.012876]
[1769891090569,0.12897132,77785.0,77771.0,0.012876]
[1769891090769,0.012874,77789.0,77771.0,0.012876]
[1769891091066,0.012874,77787.0,77765.0,0.27457175]
[1769891091369,0.1289671,77786.0,77765.0,0.27457175]
[1769891091570,0.1289671,77785.0,77773.0,0.012876]
[1769891091775,0.012874,77789.0,77770.0,0.012877]
[1769891092072,0.29167828,77781.0,77763.0,0.00012461]
[1769891092265,0.12857436,77790.0,77763.0,0.00012461]
[1769891092467,0.09268,77793.0,77763.0,0.00012461]
[1769891092468,0.012874,77786.0,77763.0,0.00012461]
[1769891092663,0.012874,77784.0,77764.0,0.012878]
[1769891092864,0.12897076,77783.0,77763.0,0.00012461]
[1769891093064,0.012875,77779.0,77763.0,0.00012461]
[1769891093260,0.012876,77773.0,77763.0,0.00012461]
[1769891093865,0.12898326,77772.0,77763.0,0.00012461]
[1769891094059,0.12898326,77772.0,77735.0,0.27457175]
[1769891094060,0.012878,77763.0,77735.0,0.27457175]
[1769891094267,0.12858263,77772.0,77741.0,0.012881]
[1769891094465,0.01292153,77788.0,77741.0,0.012881]
[1769891094466,0.012878,77765.0,77741.0,0.012881]
[1769891094661,0.29168128,77763.0,77737.0,0.012882]
[1769891094967,0.012878,77760.0,77735.0,0.012882]
[1769891095474,0.012879,77757.0,77735.0,0.012882]
[1769891095877,0.012879,77754.0,77731.0,0.012883]
[1769891096171,0.01288,77748.0,77727.0,0.012884]
[1769891096474,0.09268,77758.0,77724.0,0.09268]
[1769891096475,0.01288,77740.0,77724.0,0.09268]
[1769891096669,0.29168228,77746.0,77724.0,0.09268]
[1769891097063,0.29168228,77746.0,77720.0,0.28183686]
[1769891097064,0.01288,77743.0,77720.0,0.28183686]
[1769891097268,0.01288,77743.0,77716.0,0.012884]
[1769891097464,0.01288,77743.0,77716.0,0.28745575]
[1769891098270,0.27880328,77746.0,77716.0,0.27457175]
[1769891098570,0.012879,77746.0,77721.0,0.012883]
[1769891098776,0.012879,77746.0,77725.0,0.012883]
[1769891099475,0.012879,77746.0,77721.0,0.012883]
[1769891099873,0.01288,77743.0,77725.0,0.001]
[1769891100570,0.012878,77755.0,77734.0,0.28745275]
[1769891100771,0.012878,77754.0,77731.0,0.27457175]
[1769891100970,0.105556,77766.0,77746.0,0.012879]
[1769891101467,0.3708,77785.0,77756.0,0.012878]
[1769891101468,0.012875,77775.0,77756.0,0.012878]
[1769891101668,0.012873,77784.0,77762.0,0.012877]
[1769891101872,0.012874,77781.0,77758.0,0.012877]
[1769891102181,0.012874,77778.0,77757.0,0.012877]
[1769891102871,0.012875,77772.0,77752.0,0.012878]
[1769891103072,0.012874,77777.0,77753.0,0.27457175]
[1769891103373,0.09272,77785.0,77730.0,0.26895386]
[1769891103374,0.12858842,77771.0,77730.0,0.26895386]
[1769891103567,0.012876,77764.0,77741.0,0.28745175]
[1769891103772,0.012876,77764.0,77743.0,0.01288]
[1769891103974,0.012876,77764.0,77743.0,0.28745175]
[1769891104173,0.012877,77762.0,77743.0,0.28745175]
[1769891105179,0.012877,77762.0,77743.0,0.27457175]
[1769891105478,0.27880328,77774.0,77743.0,0.27457175]
[1769891105479,0.012877,77760.0,77743.0,0.27457175]
[1769891105974,0.27880328,77772.0,77741.0,0.09272]
[1769891106175,0.012878,77752.0,77730.0,0.012882]
[1769891106375,0.27880328,77770.0,77734.0,0.27457175]
[1769891106577,0.27880328,77770.0,77725.0,0.105603]
[1769891106578,0.012878,77755.0,77735.0,0.012881]
[1769891106777,0.012878,77752.0,77732.0,0.27457175]
[1769891106976,0.012878,77752.0,77725.0,0.09272]
[1769891106977,0.012876,77768.0,77734.0,0.27105964]
[1769891107178,0.13450954,77767.0,77747.0,0.012879]
[1769891107379,0.13450954,77766.0,77747.0,0.012879]
[1769891107577,0.012876,77768.0,77747.0,0.012879]
[1769891107975,0.012876,77765.0,77743.0,0.01388]
[1769891108182,0.012877,77762.0,77743.0,0.01388]
[1769891108479,0.012876,77766.0,77746.0,0.28393864]
[1769891108680,0.012874,77776.0,77755.0,0.012878]
[1769891108876,0.012875,77774.0,77755.0,0.012878]
[1769891109072,0.012874,77778.0,77755.0,0.012878]
[1769891109275,0.13314891,77777.0,77758.0,0.012877]
[1769891109474,0.012874,77775.0,77754.0,0.012878]
[1769891110079,0.2736643,77794.0,77768.0,0.012875]
[1769891110279,0.012873,77786.0,77768.0,0.012875]
[1769891110479,0.12859007,77793.0,77765.0,0.012876]
[1769891110675,0.2736643,77791.0,77762.0,0.09272]
[1769891110882,0.2736643,77777.0,77748.0,0.27105964]
[1769891111180,0.2736643,77775.0,77747.0,0.09272]
[1769891111383,0.2736643,77772.0,77747.0,0.09272]
[1769891111584,0.2736643,77768.0,77747.0,0.09272]
[1769891111783,0.2736643,77778.0,77747.0,0.09272]
[1769891112087,0.012876,77769.0,77751.0,0.012878]
[1769891112383,0.2736643,77778.0,77747.0,0.09272]
[1769891112384,0.2736643,77778.0,77754.0,0.012878]
[1769891112583,0.012875,77773.0,77754.0,0.012878]
[1769891113184,0.09272,77782.0,77757.0,0.27105964]
[1769891113379,0.2736643,77796.0,77760.0,0.27105964]
[1769891113587,0.2736643,77775.0,77747.0,0.09272]
[1769891113775,0.2736643,77773.0,77747.0,0.09272]
[1769891113980,0.012877,77760.0,77747.0,0.09272]
[1769891114486,0.012879,77747.0,77730.0,0.012882]
[1769891114687,0.01288,77741.0,77729.0,0.09272]
[1769891114980,0.01288,77741.0,77708.0,0.012885]
[1769891114981,0.012882,77729.0,77711.0,0.012885]
[1769891115181,0.012879,77746.0,77724.0,0.27105964]
[1769891115380,0.012879,77745.0,77726.0,0.012883]
[1769891115587,0.012878,77751.0,77731.0,0.012882]
[1769891115882,0.012879,77749.0,77731.0,0.012882]
[1769891116387,0.012879,77747.0,77728.0,0.012882]
[1769891116584,0.012877,77758.0,77738.0,0.01288]
[1769891116784,0.09272,77759.0,77732.0,0.27105964]
[1769891117088,0.012877,77758.0,77732.0,0.27105964]
[1769891117479,0.012877,77758.0,77726.0,0.09272]
[1769891117480,0.012878,77756.0,77726.0,0.09272]
[1769891117687,0.012878,77754.0,77733.0,0.012881]
[1769891117884,0.012877,77757.0,77736.0,0.012881]
[1769891118086,0.09272,77759.0,77736.0,0.012881]
[1769891118087,0.09272,77759.0,77742.0,0.01288]
[1769891118286,0.09272,77759.0,77739.0,0.01288]
[1769891118584,0.09272,77759.0,77742.0,0.01288]
[1769891119684,0.09272,77759.0,77736.0,0.27105964]
[1769891119981,0.012877,77758.0,77739.0,0.01288]
[1769891120188,0.012878,77755.0,77735.0,0.012881]
[1769891120380,0.012878,77755.0,77726.0,0.09272]
[1769891120587,0.012878,77755.0,77737.0,0.012881]
[1769891120983,0.2736643,77758.0,77736.0,0.001]
[1769891121284,0.2736643,77746.0,77726.0,0.09272]
[1769891121589,0.012879,77745.0,77726.0,0.09272]
[1769891121792,0.2736643,77739.0,77726.0,0.09272]
[1769891121984,0.12862232,77745.0,77729.0,0.012882]
[1769891122184,0.012879,77745.0,77726.0,0.012883]
[1769891122386,0.01288,77741.0,77722.0,0.012883]
[1769891123586,0.01288,77743.0,77722.0,0.012883]
[1769891123889,0.01288,77740.0,77722.0,0.012883]
[1769891124085,0.01288,77743.0,77722.0,0.012883]
[1769891124388,0.2736643,77748.0,77722.0,0.012883]
[1769891124591,0.1173733,77747.0,77722.0,0.012883]
[1769891124785,0.12864631,77746.0,77722.0,0.012883]
[1769891124990,0.012882,77727.0,77709.0,0.012885]
[1769891125182,0.2736643,77737.0,77709.0,0.012885]
[1769891125388,0.01288,77741.0,77709.0,0.27105964]
[1769891125594,0.01288,77741.0,77723.0,0.012883]
[1769891125786,0.12866204,77740.0,77723.0,0.012883]
[1769891126183,0.01288,77742.0,77723.0,0.012883]
[1769891126584,0.012881,77738.0,77717.0,0.012884]
[1769891126785,0.012881,77738.0,77719.0,0.012884]
[1769891127393,0.3155332,77767.0,77709.0,0.27105964]
[1769891127394,0.2736643,77765.0,77732.0,0.27105964]
[1769891127586,0.012876,77764.0,77746.0,0.012879]
[1769891127991,0.012876,77764.0,77736.0,0.09272]
[1769891127992,0.2736643,77765.0,77739.0,0.01288]
[1769891128292,0.012878,77756.0,77736.0,0.09272]
[1769891128687,0.012879,77748.0,77736.0,0.09272]
[1769891129587,0.012879,77748.0,77718.0,0.15231401]
[1769891129588,0.012879,77745.0,77726.0,0.012883]
[1769891129887,0.12863059,77755.0,77731.0,0.27105964]
[1769891130283,0.012877,77760.0,77731.0,0.27105964]
[1769891130683,0.012877,77758.0,77731.0,0.27105964]
[1769891130885,0.22135059,77759.0,77724.0,0.10153382]
[1769891130886,0.012878,77752.0,77724.0,0.10153382]
[1769891131084,0.01288,77744.0,77724.0,0.012883]
[1769891131482,0.01288,77741.0,77720.0,0.012883]
[1769891131794,0.01288,77740.0,77721.0,0.012883]
[1769891132092,0.2736643,77727.0,77710.0,0.10153382]
[1769891132299,0.2736643,77737.0,77713.0,0.012885]
[1769891132491,0.09272,77741.0,77722.0,0.012883]
[1769891132687,0.09272,77741.0,77714.0,0.27105964]
[1769891132887,0.09272,77741.0,77713.0,0.10153382]
[1769891132888,0.2736643,77740.0,77713.0,0.10153382]
[1769891133090,0.012881,77734.0,77705.0,0.012886]
[1769891133290,0.012882,77731.0,77701.0,0.28394664]
[1769891133498,0.012882,77732.0,77701.0,0.28394664]
[1769891133798,0.012882,77728.0,77701.0,0.27105964]
[1769891133992,0.012882,77728.0,77703.0,0.012886]
[1769891134192,0.2865463,77733.0,77703.0,0.012886]
[1769891134498,0.12867363,77734.0,77697.0,0.10162703]
[1769891134698,0.2736643,77728.0,77697.0,9.321e-05]
[1769891135192,0.012883,77724.0,77697.0,9.321e-05]
[1769891135499,0.2865473,77724.0,77697.0,9.321e-05]
[1769891136197,0.2865483,77720.0,77697.0,9.321e-05]
[1769891136400,0.2736643,77720.0,77697.0,9.321e-05]
[1769891136694,0.2736643,77730.0,77698.0,0.27105964]
[1769891136897,0.09272,77737.0,77704.0,0.28394564]
[1769891137093,0.09272,77737.0,77705.0,0.3671193]
[1769891137299,0.012882,77728.0,77705.0,0.09272]
[1769891138096,0.012883,77724.0,77705.0,0.09272]
[1769891138287,0.012883,77725.0,77705.0,0.09272]
[1769891138894,0.012883,77726.0,77705.0,0.09272]
[1769891139296,0.14155728,77731.0,77705.0,0.09272]
[1769891139490,0.012882,77728.0,77705.0,0.09262]
[1769891140301,0.012883,77725.0,77705.0,0.09262]
[1769891140999,0.27174072,77718.0,77705.0,0.09262]
[1769891141298,0.012885,77714.0,77697.0,9.321e-05]
[1769891141595,0.012884,77718.0,77697.0,9.321e-05]
[1769891141795,0.012882,77731.0,77707.0,0.2903465]
[1769891142097,0.12869101,77729.0,77707.0,0.2903465]
[1769891142491,0.012832,77728.0,77707.0,0.2903465]
[1769891142694,0.012882,77732.0,77707.0,0.2902965]
[1769891142896,0.012882,77732.0,77710.0,0.012885]
[1769891142897,0.12867032,77730.0,77710.0,0.012885]
[1769891143194,0.012882,77732.0,77710.0,0.012885]
[1769891143595,0.29072266,77726.0,77704.0,0.012886]
[1769891143790,0.27783966,77717.0,77697.0,9.321e-05]
[1769891144298,0.012885,77712.0,77697.0,9.321e-05]
[1769891145289,0.09276,77723.0,77698.0,0.2774605]
[1769891145491,0.012881,77736.0,77706.0,0.2774605]
[1769891145802,0.01288,77741.0,77708.0,0.2774605]
[1769891145993,0.012881,77738.0,77714.0,0.012885]
[1769891146300,0.012881,77735.0,77714.0,0.012885]
[1769891146793,0.12868273,77737.0,77712.0,0.2774605]
[1769891146794,0.012881,77738.0,77717.0,0.012884]
[1769891146993,0.09276,77742.0,77712.0,0.2774605]
[1769891147193,0.12865956,77741.0,77712.0,0.2774605]
[1769891147500,0.012881,77737.0,77715.0,0.012884]
[1769891147899,0.012881,77737.0,77717.0,0.012884]
[1769891148096,0.012881,77735.0,77714.0,0.012885]
[1769891148296,0.012882,77730.0,77708.0,0.012886]
[1769891148701,0.012882,77727.0,77708.0,0.012886]
[1769891148911,0.012882,77730.0,77710.0,0.012885]
[1769891149198,0.01288,77739.0,77721.0,0.012883]
[1769891149397,0.01288,77739.0,77719.0,0.012884]
[1769891149798,0.012881,77737.0,77716.0,0.012884]
[1769891149999,0.012881,77735.0,77716.0,0.012884]
[1769891150597,0.012881,77735.0,77718.0,0.012884]
[1769891151399,0.27783966,77750.0,77721.0,0.2774605]
[1769891151601,0.012877,77758.0,77739.0,0.01288]
[1769891151800,0.12865624,77757.0,77742.0,0.01288]
[1769891151994,0.012875,77770.0,77748.0,0.012879]
[1769891152200,0.012875,77774.0,77747.0,0.2774605]
[1769891152499,0.12865624,77773.0,77751.0,0.012878]
[1769891152695,0.012875,77774.0,77751.0,0.012878]
[1769891152899,0.12859999,77772.0,77754.0,0.012878]
[1769891153095,0.09276,77785.0,77754.0,0.2774605]
[1769891153301,0.09276,77785.0,77762.0,0.2774605]
[1769891153494,0.27783966,77773.0,77746.0,0.09276]
[1769891153700,0.12859999,77784.0,77737.0,0.11436006]
[1769891153701,0.27783966,77770.0,77737.0,0.11436006]
[1769891153905,0.012877,77757.0,77737.0,0.012881]
[1769891154108,0.012877,77761.0,77737.0,0.012881]
[1769891154298,0.012879,77747.0,77732.0,0.09276]
[1769891154503,0.012879,77751.0,77732.0,0.09276]
[1769891154803,0.29071766,77755.0,77732.0,0.09276]
[1769891155108,0.23183966,77764.0,77733.0,0.2774605]
[1769891155305,0.012878,77754.0,77733.0,0.2903415]
[1769891155605,0.12863473,77754.0,77732.0,0.09276]